bitfinex-derivatives/quotes_ETHF0:USTF0_20260131
["timestamp","ask_amount","ask_price","bid_price","bid_amount"]
[1769889200511,0.14949789,2392.6,2391.2,0.0031448]
[1769889200709,0.14949789,2392.4,2391.2,0.0031448]
[1769889201209,0.14949789,2392.4,2391.2,0.15776518]
[1769889201411,0.00365602,2392.6,2391.2,0.15776518]
[1769889201610,0.00365602,2392.6,2391.3,0.15462038]
[1769889202110,0.00365602,2392.6,2391.5,0.15462038]
[1769889202611,0.00365602,2392.6,2391.7,0.15462038]
[1769889202904,0.15315391,2392.6,2391.2,0.0031448]
[1769889203498,0.36243391,2392.6,2391.2,0.0031448]
[1769889203705,0.14949789,2392.4,2391.2,0.0031448]
[1769889203906,0.00365602,2392.6,2390.2,9.59381703]
[1769889203907,0.14949789,2391.9,2390.2,3.7182611]
[1769889204204,0.14949789,2391.6,2389.6,0.15462038]
[1769889204408,0.07280099,2391.5,2389.7,0.15462038]
[1769889204609,0.14949789,2392.3,2390.8,0.09599235]
[1769889204809,0.14949789,2392.3,2390.8,0.09966668]
[1769889206109,0.14949789,2392.3,2390.8,0.00367433]
[1769889206310,0.14949789,2391.9,2390.8,0.00367433]
[1769889207203,0.14949789,2391.9,2389.9,4.94284058]
[1769889207802,0.14949789,2391.9,2389.9,5.03192788]
[1769889208001,0.14949789,2391.7,2389.9,0.0890873]
[1769889208202,0.14949789,2391.5,2389.9,0.09449653]
[1769889208406,0.07279672,2391.8,2390.2,0.0890873]
[1769889208608,0.14949789,2391.9,2390.3,0.0890873]
[1769889209214,0.14949789,2391.9,2390.6,0.0890873]
[1769889209411,3.348,2392.4,2390.7,0.0890873]
[1769889209610,3.348,2392.4,2390.6,4.94284058]
[1769889209611,3.348,2392.4,2390.9,0.08589377]
[1769889209913,0.14949789,2392.3,2390.9,0.08589377]
[1769889210110,0.14949789,2392.3,2390.7,4.94284058]
[1769889210414,0.14949789,2392.3,2390.2,4.94284058]
[1769889210712,0.14949789,2392.3,2389.6,9.10980665]
[1769889210713,0.14949789,2392.0,2390.4,0.08589377]
[1769889211209,0.14949789,2392.0,2390.2,4.94284058]
[1769889211406,0.14949789,2392.0,2390.1,4.94284058]
[1769889211813,0.14949789,2392.0,2390.1,5.02555143]
[1769889212014,0.14949789,2392.0,2390.1,4.94284058]
[1769889212212,0.14949789,2391.8,2390.2,0.08271085]
[1769889212406,0.00365602,2392.6,2390.5,0.08271085]
[1769889212407,0.14949789,2392.2,2390.5,0.08271085]
[1769889212612,0.14949789,2392.2,2390.7,0.08271085]
[1769889212910,0.14949789,2392.2,2390.8,0.08271085]
[1769889213112,0.14949789,2392.2,2390.9,3.8065467]
[1769889213317,0.14949789,2392.2,2391.0,0.08271085]
[1769889213517,0.14949789,2392.2,2390.9,3.72383585]
[1769889213817,0.14949789,2392.2,2390.5,3.72383585]
[1769889214112,0.14949789,2392.1,2390.1,5.02487724]
[1769889214515,0.14949789,2392.0,2390.1,5.02487724]
[1769889215117,0.14949789,2391.8,2390.4,4.94284058]
[1769889215416,0.14949789,2391.8,2390.3,4.94284058]
[1769889215918,0.14949789,2391.8,2390.5,0.08067135]
[1769889216119,0.14949789,2392.0,2390.7,5.02351193]
[1769889216417,0.14949789,2392.0,2390.5,4.94284058]
[1769889216616,0.14949789,2392.0,2390.4,4.94284058]
[1769889217115,0.14949789,2392.0,2390.3,4.94284058]
[1769889217618,0.14949789,2392.0,2390.3,5.02257073]
[1769889217813,0.14949789,2392.0,2390.5,4.94284058]
[1769889218412,5.816,2392.1,2390.6,0.07973015]
[1769889218618,5.816,2392.1,2389.9,0.00540923]
[1769889218619,3.348,2392.1,2391.0,0.07973015]
[1769889218812,3.50166311,2392.1,2391.0,0.07973015]
[1769889219120,0.15366311,2392.0,2390.6,5.02257073]
[1769889219315,0.15366311,2392.0,2390.6,0.07973015]
[1769889219521,0.15366311,2392.0,2390.4,4.94284058]
[1769889220818,0.15366311,2392.0,2390.3,4.94284058]
[1769889221011,0.15366311,2392.0,2389.9,0.00540923]
[1769889221012,0.15366311,2391.6,2389.9,0.00540923]
[1769889221216,0.1531167,2391.4,2389.9,0.00540923]
[1769889221818,0.1531167,2391.2,2389.9,0.00540923]
[1769889222014,0.20941,2391.1,2389.9,0.00540923]
[1769889222217,0.1531167,2391.2,2388.9,5.02271653]
[1769889222218,0.3625467,2390.9,2388.9,5.02271653]
[1769889222419,0.1531167,2390.7,2388.9,5.02271653]
[1769889222623,0.1531167,2390.7,2388.8,4.94284058]
[1769889223021,3.55743,2390.8,2388.8,4.94284058]
[1769889223022,0.3625767,2390.5,2388.8,4.94284058]
[1769889223218,0.1531167,2390.3,2388.8,0.00373912]
[1769889223414,0.1531167,2390.3,2388.8,0.0890243]
[1769889223618,0.1531167,2390.3,2389.0,0.08671361]
[1769889224120,0.3925086,2391.2,2389.5,0.08671361]
[1769889224313,0.1531167,2391.1,2389.6,0.08671361]
[1769889224514,0.1531167,2391.1,2389.3,4.94284058]
[1769889224722,0.1531167,2391.1,2389.2,0.08671361]
[1769889225217,0.15614142,2391.1,2389.2,0.08671361]
[1769889225523,0.15614142,2391.1,2389.8,0.08597369]
[1769889225920,0.15614142,2391.1,2389.2,7.62140107]
[1769889225921,0.15614142,2391.1,2389.2,0.08597369]
[1769889226124,0.1531167,2391.0,2388.9,0.08597369]
[1769889226324,0.1531167,2390.9,2388.9,0.08597369]
[1769889227226,0.1531167,2390.7,2388.8,0.00373912]
[1769889227432,0.1531167,2390.5,2388.8,0.00373912]
[1769889228828,0.1531167,2390.5,2388.8,0.08981497]
[1769889229228,3.86201557,2390.4,2388.8,0.00373912]
[1769889229422,0.1531167,2389.8,2388.0,6.1772725]
[1769889229629,0.1531167,2389.8,2388.0,0.08607585]
[1769889230129,0.1531167,2389.7,2387.8,6.09119665]
[1769889230430,0.1531167,2389.1,2387.3,0.08608387]
[1769889230630,0.15729193,2389.1,2387.8,0.08608387]
[1769889231222,0.00417523,2389.1,2387.8,0.08608387]
[1769889232430,0.15729193,2389.1,2387.8,0.08608387]
[1769889233135,0.00417523,2389.1,2387.8,0.08608387]
[1769889234339,0.1531167,2389.9,2387.9,0.07397102]
[1769889234532,0.1531167,2389.9,2388.0,0.07397102]
[1769889234738,0.1531167,2390.3,2388.3,0.07397102]
[1769889234927,0.1531167,2390.0,2388.3,0.07397102]
[1769889235333,0.15796303,2390.0,2388.3,0.07397102]
[1769889235736,0.15796303,2390.0,2387.8,0.07397361]
[1769889235941,0.1531167,2389.9,2387.8,0.07397361]
[1769889236233,0.1531167,2389.8,2387.8,0.07397361]
[1769889236938,0.1531167,2389.8,2387.9,0.07397361]
[1769889237635,0.00484633,2390.0,2388.1,0.07223354]
[1769889237832,0.15796303,2390.0,2388.2,0.07223354]
[1769889239734,0.15796303,2390.0,2388.3,0.07247056]
[1769889240741,0.15796303,2390.0,2387.9,0.07247056]
[1769889242838,0.15796303,2390.0,2388.1,0.07220881]
[1769889243040,0.15796303,2390.0,2388.2,0.07220881]
[1769889243244,0.15796303,2390.0,2388.3,6.16340546]
[1769889243439,0.15796303,2390.0,2388.4,0.07220881]
[1769889244044,0.00484633,2390.0,2388.5,0.07415215]
[1769889244251,2.86237923,2391.2,2388.9,0.07415215]
[1769889244252,0.1531167,2390.7,2388.9,0.07415215]
[1769889244440,0.1531167,2390.7,2389.0,0.07415215]
[1769889245143,0.1531167,2390.7,2389.1,0.07415215]
[1769889245341,0.15640545,2390.7,2388.8,13.50302772]
[1769889245544,0.15640545,2390.7,2388.7,0.07415215]
[1769889245938,0.1531167,2390.4,2388.3,6.16710165]
[1769889246143,0.1531167,2390.4,2388.4,6.09119665]
[1769889246343,0.1531167,2390.4,2388.3,6.16710165]
[1769889246639,0.1531167,2390.4,2388.3,0.075905]
[1769889246846,0.15208127,2389.9,2388.1,3.351]
[1769889247045,0.20951,2390.0,2388.1,3.351]
[1769889247046,0.15208127,2389.7,2388.1,3.351]
[1769889248050,0.15208127,2389.7,2387.9,0.075905]
[1769889249251,0.15208127,2389.7,2387.7,0.00521213]
[1769889249252,0.36167127,2389.0,2387.7,0.00521213]
[1769889249548,0.15569221,2389.0,2387.7,0.00521213]
[1769889250144,0.15208127,2388.8,2387.7,0.00521213]
[1769889252247,0.15208127,2387.8,2386.0,6.09119665]
[1769889252544,0.15208127,2387.8,2386.4,0.0748146]
[1769889253148,0.15208127,2388.0,2386.5,0.0748146]
[1769889253646,0.15208127,2388.8,2386.7,0.07557048]
[1769889253846,0.15208127,2388.8,2386.9,0.07557048]
[1769889254044,0.15208127,2388.8,2387.0,0.07557048]
[1769889255957,0.00361094,2389.0,2387.5,0.07283141]
[1769889256150,0.00361094,2389.0,2387.6,6.16402806]
[1769889256351,0.00361094,2389.0,2387.7,0.07283141]
[1769889256653,0.15208127,2389.6,2388.1,0.06922047]
[1769889256847,0.15208127,2390.0,2388.3,0.06922047]
[1769889257053,0.15208127,2390.0,2388.5,0.06922047]
[1769889257555,0.15750563,2390.0,2388.5,0.07226983]
[1769889259055,0.15750563,2390.0,2388.5,0.00304936]
[1769889259650,0.15208127,2389.8,2388.5,0.00304936]
[1769889260048,2.81860127,2389.8,2387.7,6.09119665]
[1769889260353,2.81860127,2389.8,2387.4,6.09119665]
[1769889260354,0.15208127,2389.6,2387.4,6.09119665]
[1769889260553,0.15208127,2389.4,2387.4,6.09119665]
[1769889261056,0.15208127,2389.4,2387.7,0.06928539]
[1769889261650,0.15208127,2389.1,2387.4,0.0051249]
[1769889261847,0.15208127,2388.9,2387.4,0.0051249]
[1769889262452,0.15208127,2388.9,2387.4,0.07377268]
[1769889263255,0.15208127,2388.9,2387.4,0.0051249]
[1769889266959,0.15208127,2388.7,2387.4,0.0051249]
[1769889267160,0.15208127,2388.6,2387.4,0.0051249]
[1769889267664,0.15208127,2389.1,2387.4,0.07606585]
[1769889269258,0.15208127,2389.4,2387.8,0.07094095]
[1769889269561,0.15208127,2389.4,2387.9,0.07094095]
[1769889270565,0.15208127,2389.9,2388.2,0.07181722]
[1769889271468,0.15208127,2389.9,2388.0,6.09119665]
[1769889271663,0.15208127,2389.9,2387.9,6.16718625]
[1769889271862,0.00542436,2390.0,2387.7,2.457]
[1769889271863,0.15208127,2389.6,2387.7,13.50302772]
[1769889272067,0.36162127,2389.6,2387.6,6.16718625]
[1769889272259,0.15208127,2389.5,2387.7,0.0759896]
[1769889272463,0.15208127,2389.3,2387.9,0.0759896]
[1769889273268,0.36165127,2389.3,2387.5,6.16718625]
[1769889273464,0.15208127,2389.1,2387.5,0.0759896]
[1769889273664,0.15208127,2388.9,2387.4,0.0051249]
[1769889274268,0.15208127,2388.9,2387.4,0.07959395]
[1769889274768,0.15208127,2388.9,2387.4,0.0051249]
[1769889276570,0.15208127,2388.9,2387.4,0.07932503]
[1769889277270,0.15208127,2388.9,2387.6,0.07438135]
[1769889277569,0.15208127,2388.9,2387.4,6.09632155]
[1769889277765,0.15208127,2388.9,2387.4,0.0051249]
[1769889280771,0.14694409,2388.2,2386.5,6.09119665]
[1769889280974,0.14694409,2388.1,2386.4,6.09119665]
[1769889281164,0.14694409,2388.1,2385.9,23.67088634]
[1769889281165,0.14694409,2388.1,2386.5,6.13745061]
[1769889281474,0.14694409,2388.1,2386.5,6.09119665]
[1769889281671,0.14694409,2388.1,2386.2,7.45789423]
[1769889281873,0.15039148,2388.1,2386.3,0.00389055]
[1769889282068,0.15950473,2387.8,2386.3,0.00389055]
[1769889282270,0.15950473,2387.7,2386.3,0.00389055]
[1769889282668,0.15950473,2387.5,2386.3,0.00389055]
[1769889283265,0.15950473,2387.4,2386.3,0.00389055]
[1769889285075,0.15950473,2387.9,2386.3,0.05154474]
[1769889285571,0.15950473,2387.8,2386.3,0.05154474]
[1769889285772,0.15950473,2387.8,2386.3,0.00389055]
[1769889286574,0.15950473,2387.7,2386.3,0.00389055]
[1769889290467,0.15950473,2387.7,2386.3,0.04255028]
[1769889290673,0.15950473,2387.7,2386.4,0.03865973]
[1769889291074,0.15950473,2387.7,2386.5,0.03865973]
[1769889291272,0.16295212,2388.1,2386.5,0.03865973]
[1769889291477,3.353,2388.8,2387.2,0.03865973]
[1769889291478,0.15950473,2388.5,2387.2,0.03865973]
[1769889291677,0.15950473,2388.5,2387.0,6.27613929]
[1769889291979,0.15950473,2388.5,2387.1,6.27613929]
[1769889292376,0.15950473,2388.5,2387.2,0.0388531]
[1769889292674,0.00344363,2388.5,2387.3,0.0388531]
[1769889293876,0.00344363,2388.5,2387.4,0.03589818]
[1769889294278,0.16294836,2388.5,2387.2,6.23728619]
[1769889294576,0.16294836,2388.5,2387.3,6.27318437]
[1769889294777,0.16294836,2388.5,2387.4,0.03589818]
[1769889295279,0.16639575,2388.5,2386.9,6.23728619]
[1769889295474,0.16294836,2388.5,2386.8,0.03589818]
[1769889297979,0.15950473,2388.2,2386.5,8.73184414]
[1769889298178,0.15950473,2388.2,2386.5,6.27384414]
[1769889298379,0.16295212,2388.2,2386.5,6.27384414]
[1769889298681,0.16295212,2388.2,2386.6,0.03655795]
[1769889298682,0.15950473,2388.2,2386.6,0.03655795]
[1769889299475,0.15950473,2388.0,2386.5,6.23728619]
[1769889299677,0.15950473,2388.0,2386.3,0.00389055]
[1769889299875,0.15950473,2387.7,2386.3,0.00389055]
[1769889300276,0.15950473,2387.5,2386.3,0.00389055]
[1769889301076,0.15950473,2388.3,2386.5,0.03729559]
[1769889301277,0.00344363,2388.5,2387.2,0.03729559]
[1769889301477,0.00344363,2388.5,2387.6,0.03729559]
[1769889301782,0.16294836,2388.5,2387.3,6.23728619]
[1769889301982,0.15950473,2388.3,2387.4,6.23728619]
[1769889302184,0.15950473,2388.3,2387.1,6.23728619]
[1769889302476,0.15950473,2388.3,2387.4,6.23728619]
[1769889302676,0.15950473,2388.3,2387.3,6.23728619]
[1769889302879,0.15950473,2388.3,2387.1,7.44933223]
[1769889303075,0.15950473,2388.3,2387.2,0.03750116]
[1769889303279,0.00344363,2388.5,2387.2,0.03750116]
[1769889303479,0.00344363,2388.5,2387.3,0.03750116]
[1769889303685,0.16639575,2388.5,2387.3,0.03750116]
[1769889303982,0.16294836,2388.5,2387.3,0.03750116]
[1769889304585,0.16639575,2388.5,2387.1,7.41183107]
[1769889304779,0.16294836,2388.5,2387.1,7.41183107]
[1769889305078,0.15950473,2388.1,2386.7,7.41183107]
[1769889305278,0.15950473,2388.4,2386.9,0.03739671]
[1769889305483,0.15950473,2388.4,2387.0,0.03739671]
[1769889305982,0.16295212,2388.1,2386.7,0.03972524]
[1769889306180,0.15950473,2388.1,2386.7,0.03972524]
[1769889306381,0.15950473,2387.9,2386.7,0.03972524]
[1769889306582,0.15950473,2387.7,2386.5,10.07964107]
[1769889306782,0.15950473,2387.7,2386.5,9.86983107]
[1769889307176,0.16295212,2387.7,2386.3,16.56525351]
[1769889307380,0.16098101,2387.5,2386.3,0.00389055]
[1769889307580,0.15753362,2387.5,2386.3,0.00389055]
[1769889307885,0.15753362,2387.3,2386.3,0.00389055]
[1769889308185,0.15753362,2388.4,2386.5,0.04073295]
[1769889308383,0.15753362,2388.0,2386.5,0.04073295]
[1769889308583,0.15753362,2388.0,2386.3,7.41572162]
[1769889308785,0.16098101,2387.7,2386.3,0.00389055]
[1769889308981,0.15753362,2387.7,2386.3,0.0446235]
[1769889309186,0.15753362,2387.7,2386.4,0.04073295]
[1769889309385,0.15753362,2387.4,2386.3,7.41572162]
[1769889309589,0.15753362,2387.4,2386.3,0.00389055]
[1769889309988,0.16098101,2387.4,2386.3,0.00389055]
[1769889310490,0.15753362,2387.0,2386.3,0.00389055]
[1769889310678,0.15753362,2387.9,2386.3,0.00389055]
[1769889310982,0.16098101,2387.5,2386.3,0.00389055]
[1769889311184,0.00344739,2387.4,2386.3,0.00389055]
[1769889311390,0.15753362,2386.9,2386.3,0.00389055]
[1769889311794,0.15753362,2386.6,2386.0,2.458]
[1769889312088,0.15753362,2386.6,2386.0,8.70689521]
[1769889312484,0.15753362,2386.6,2386.0,2.458]
[1769889312979,0.15753362,2386.6,2386.0,2.46249845]
[1769889312980,0.16290619,2386.6,2386.0,2.46249845]
[1769889313181,0.00537257,2386.6,2386.0,2.46249845]
[1769889313385,0.00537257,2386.6,2386.0,0.00449845]
[1769889314087,0.00537257,2386.6,2386.0,6.25319685]
[1769889314685,0.15753362,2387.5,2386.1,0.04456177]
[1769889314891,0.15753362,2388.1,2386.6,6.2486984]
[1769889315093,0.15753362,2388.1,2386.7,6.2486984]
[1769889315286,0.15753362,2387.8,2386.7,6.2486984]
[1769889315791,0.00344739,2387.6,2386.7,6.2486984]
[1769889316092,0.16098101,2387.6,2386.7,6.2486984]
[1769889316389,0.00344739,2387.5,2386.7,6.2486984]
[1769889316785,0.00344739,2387.4,2386.7,6.2486984]
[1769889316980,0.00344739,2387.5,2386.7,6.2486984]
[1769889317181,0.00388414,2387.8,2386.9,0.040433]
[1769889317388,0.15753362,2388.3,2387.1,6.2891314]
[1769889317795,0.15753362,2388.3,2387.2,6.2887066]
[1769889317995,0.15753362,2388.3,2387.3,6.2486984]
[1769889318383,0.15753362,2387.9,2387.2,6.2486984]
[1769889318784,0.00490897,2388.3,2387.0,7.41183107]
[1769889318785,0.16098101,2387.8,2387.0,13.66052947]
[1769889318989,0.15753362,2387.8,2387.0,2.458]
[1769889319190,0.00344739,2387.7,2387.0,2.458]
[1769889319894,0.00344739,2387.7,2387.0,8.7066984]
[1769889321095,0.00344739,2387.6,2387.0,2.458]
[1769889321495,0.00344739,2387.5,2387.0,2.458]
[1769889321795,0.00344739,2387.6,2387.0,2.458]
[1769889322298,0.00344739,2387.5,2386.8,2.458]
[1769889322497,0.16098101,2387.8,2386.8,2.458]
[1769889322796,0.16098101,2387.7,2386.8,2.458]
[1769889322994,0.15753362,2387.7,2386.8,2.458]
[1769889323193,0.00344739,2387.6,2386.8,9.86983107]
[1769889323398,0.00344739,2387.6,2386.8,2.458]
[1769889323699,0.00344739,2387.4,2386.8,2.458]
[1769889323888,0.00344739,2387.4,2386.7,2.458]
[1769889324394,0.16098101,2387.2,2386.7,2.458]
[1769889324594,0.15753362,2387.2,2386.7,2.458]
[1769889324795,0.15753362,2387.2,2386.4,7.41183107]
[1769889324796,0.00344739,2386.9,2386.3,2.458]
[1769889324985,0.00344739,2387.1,2386.3,2.458]
[1769889325190,0.00344739,2387.0,2386.2,2.458]
[1769889325494,0.15753362,2388.0,2386.0,0.0399523]
[1769889325692,0.15753362,2388.0,2386.2,7.44859978]
[1769889326598,0.15753362,2388.0,2386.3,0.03676871]
[1769889326799,0.15753362,2388.0,2386.5,0.03676871]
[1769889326992,0.00490897,2388.3,2387.2,0.03676871]
[1769889327194,0.15753362,2388.9,2387.4,0.03676871]
[1769889327394,0.15753362,2389.2,2387.6,0.03185974]
[1769889327593,0.15753362,2389.2,2387.8,0.03185974]
[1769889328298,0.16107813,2389.2,2387.9,0.03124021]
[1769889328494,0.16107813,2389.2,2388.0,2.48924021]
[1769889330095,0.16107813,2389.2,2388.0,9.90107128]
[1769889331103,0.16107813,2389.2,2388.1,0.02616168]
[1769889332603,0.16107813,2389.2,2388.0,2.458]
[1769889332800,0.16107813,2389.2,2387.8,0.00405699]
[1769889333000,0.16107813,2389.2,2387.8,2.46205699]
[1769889334394,0.16107813,2389.2,2387.8,2.48682146]
[1769889334601,0.16107813,2389.2,2387.9,0.02476447]
[1769889334906,0.16107813,2389.2,2388.0,6.22964671]
[1769889335206,0.16107813,2389.2,2387.9,0.02476447]
[1769889335706,0.16107813,2389.2,2388.0,2.457]
[1769889336001,0.16107813,2389.2,2388.1,0.02542081]
[1769889336399,0.00354451,2389.2,2388.1,0.02542081]
[1769889336600,0.15753362,2390.0,2388.4,0.02542081]
[1769889336906,0.15753362,2390.0,2388.7,0.02532277]
[1769889337102,0.15670705,2390.8,2388.6,7.43715384]
[1769889337299,0.15670705,2390.3,2388.6,2.457]
[1769889337505,0.00343506,2390.3,2389.1,0.02450903]
[1769889337706,0.15670705,2390.9,2389.4,0.02107397]
[1769889337903,0.15670705,2390.9,2389.5,2.457]
[1769889338100,0.15670705,2390.9,2389.3,2.457]
[1769889338802,0.16049759,2390.9,2389.3,2.46211644]
[1769889339403,0.16049759,2390.9,2389.4,0.02107397]
[1769889342606,0.16049759,2390.9,2389.3,2.46211644]
[1769889343399,0.15569371,2390.7,2389.3,0.00511644]
[1769889343806,0.15569371,2390.3,2388.1,0.01875267]
[1769889344003,0.15569371,2390.2,2388.2,0.02386911]
[1769889344404,0.15569371,2390.2,2388.1,2.456]
[1769889344707,0.15569371,2390.2,2387.9,0.02386911]
[1769889345004,0.15569371,2390.2,2387.9,2.48520292]
[1769889345704,0.15569371,2390.1,2387.9,2.48520292]
[1769889346009,0.15569371,2389.5,2387.9,0.00533381]
[1769889346305,0.15569371,2389.5,2386.7,15.7267629]
[1769889346306,0.15569371,2389.4,2386.7,5.806]
[1769889346504,0.15569371,2389.0,2386.7,5.806]
[1769889346808,0.15569371,2389.0,2386.7,5.83509036]
[1769889347306,0.15892824,2389.0,2386.7,5.83967186]
[1769889347510,0.15892824,2389.0,2386.8,0.02909036]
[1769889348008,0.15569371,2388.5,2386.7,0.0045815]
[1769889348198,0.15569371,2388.5,2386.7,0.0423443]
[1769889349602,0.15569371,2388.5,2386.9,0.0377628]
[1769889349802,0.15569371,2388.5,2387.0,2.49512126]
[1769889350004,0.15569371,2388.8,2387.1,0.03812126]
[1769889350508,0.15569371,2388.8,2387.3,0.03812126]
[1769889350998,0.00323453,2389.0,2387.5,0.03812126]
[1769889351198,0.15892824,2389.0,2387.5,0.03812126]
[1769889351607,0.15892824,2389.0,2387.2,7.44936375]
[1769889351910,0.15892824,2389.0,2387.2,2.457]
[1769889352598,0.15892824,2389.0,2387.4,0.03753268]
[1769889355007,0.15892824,2389.0,2387.2,2.457]
[1769889355312,0.15892824,2389.0,2387.0,0.03942144]
[1769889355507,0.15892824,2389.0,2387.3,0.03942144]
[1769889356507,0.15892824,2389.0,2387.1,2.457]
[1769889357211,0.15892824,2389.0,2387.1,2.49641823]
[1769889357410,0.15892824,2389.0,2387.2,0.03941823]
[1769889360322,0.15892824,2389.0,2387.4,0.040911]
[1769889360613,0.15892824,2389.0,2387.5,0.040911]
[1769889361213,0.15892824,2389.0,2387.5,6.26103625]
[1769889361814,0.15892824,2389.0,2387.4,6.22012525]
[1769889362217,0.15892824,2389.0,2387.2,6.22012525]
[1769889362414,0.15892824,2389.0,2387.0,6.22012525]
[1769889362612,0.15892824,2389.0,2386.8,9.57212525]
[1769889362920,0.15569371,2388.8,2386.8,9.61404204]
[1769889363120,0.15569371,2388.8,2387.6,0.04191679]
[1769889363311,0.00323453,2389.0,2387.8,0.04191679]
[1769889363510,0.00323453,2389.0,2387.7,2.6667]
[1769889363511,0.15892824,2389.0,2387.7,2.457]
[1769889364111,0.15892824,2389.0,2387.4,6.26204204]
[1769889364620,0.15892824,2389.0,2387.4,0.04191679]
[1769889365022,0.15892824,2389.0,2387.4,6.26204204]
[1769889365321,0.15892824,2389.0,2387.6,0.04327315]
[1769889366017,0.15569371,2389.7,2388.0,0.04478618]
[1769889366322,0.15569371,2389.7,2388.1,8.67712525]
[1769889366525,0.15569371,2389.7,2388.1,2.457]
[1769889367121,0.15968042,2389.7,2388.1,2.457]
[1769889367320,0.15968042,2389.7,2387.6,6.47465125]
[1769889367620,0.15968042,2389.7,2387.8,0.044816]
[1769889367919,0.15968042,2389.7,2387.6,8.88683525]
[1769889368122,0.15968042,2389.7,2387.8,0.04461887]
[1769889368315,0.15968042,2389.7,2388.3,0.20965]
[1769889368522,0.15968042,2389.7,2388.5,0.04461887]
[1769889368712,0.00398671,2389.7,2388.5,0.05000291]
[1769889368916,3.50225233,2390.0,2388.5,0.05000291]
[1769889368917,0.15025233,2390.0,2388.7,0.04461887]
[1769889369317,0.15025233,2390.0,2388.8,0.04461887]
[1769889369530,0.15025233,2390.0,2389.0,6.26474412]
[1769889369819,0.15025233,2390.8,2389.3,0.04742905]
[1769889370015,0.1532488,2390.8,2389.6,0.04742905]
[1769889370212,0.1532488,2390.8,2389.6,2.50442905]
[1769889370611,0.1532488,2390.8,2389.6,0.04742905]
[1769889370816,0.1532488,2390.8,2389.2,0.04742905]
[1769889371818,0.1532488,2390.8,2389.3,0.04716484]
[1769889372618,0.1532488,2390.8,2389.1,8.67712525]
[1769889372820,0.1532488,2390.8,2389.1,2.457]
[1769889378422,0.1532488,2390.8,2388.9,0.04716484]
[1769889382534,0.1532488,2390.8,2389.2,0.04891704]
[1769889382732,0.1532488,2390.8,2389.5,0.04891704]
[1769889382930,0.00299647,2390.8,2389.7,6.22012525]
[1769889383131,0.00299647,2390.8,2389.8,0.04891704]
[1769889383333,25.90233153,2392.3,2389.8,0.04891704]
[1769889383334,2.59758386,2392.8,2390.8,0.04592057]
[1769889383530,0.15025233,2393.1,2391.7,0.04592057]
[1769889383736,0.15025233,2393.6,2391.9,0.04618811]
[1769889383931,0.15025233,2393.6,2392.0,0.04618811]
[1769889384531,0.15025233,2393.6,2392.0,0.0033754]
[1769889384532,0.15514266,2393.6,2392.0,0.0033754]
[1769889385234,0.15514266,2393.6,2392.0,0.04956351]
[1769889386632,0.15514266,2393.6,2392.0,0.0033754]
[1769889386935,0.15025233,2393.4,2392.0,0.0033754]
[1769889387134,0.15025233,2393.3,2392.0,0.0033754]
[1769889387438,0.15025233,2393.2,2391.1,0.04640733]
[1769889388332,0.15025233,2393.2,2391.1,0.05154208]
[1769889388535,0.15025233,2393.2,2391.2,0.04776968]
[1769889390330,0.15025233,2393.2,2391.4,0.05253186]
[1769889394037,0.15025233,2393.1,2391.1,0.06301241]
[1769889394238,0.15025233,2393.1,2391.2,0.05787766]
[1769889399741,0.15025233,2393.1,2391.6,0.05982941]
[1769889400348,0.15025233,2393.1,2391.4,5.13718848]
[1769889400549,0.15025233,2393.1,2391.4,4.92780848]
[1769889400744,0.54273936,2394.1,2391.1,0.00513475]
[1769889400745,0.07273936,2394.1,2392.6,0.05493908]
[1769889400948,0.15728818,2394.5,2393.0,0.05493908]
[1769889401157,0.15728818,2394.5,2393.1,0.05486308]
[1769889401751,0.16201701,2394.5,2393.1,0.05486308]
[1769889401956,0.16201701,2394.5,2393.1,0.00302202]
[1769889402254,0.16201701,2394.5,2393.1,0.06179205]
[1769889403056,0.15705135,2394.8,2393.1,0.06179205]
[1769889403556,0.15705135,2394.8,2393.3,0.05877003]
[1769889403952,0.15999917,2394.8,2393.3,0.05877003]
[1769889404152,0.15999917,2394.8,2393.1,0.00302202]
[1769889404658,0.15705135,2394.7,2393.1,0.00302202]
[1769889404957,0.36615135,2394.6,2393.1,0.00302202]
[1769889405157,0.15705135,2394.5,2392.6,3.347]
[1769889405455,0.15705135,2394.5,2392.6,3.40901054]
[1769889405654,0.15705135,2394.5,2392.8,0.05987137]
[1769889406047,0.15705135,2394.5,2392.5,0.05987137]
[1769889406250,0.15705135,2394.5,2392.8,0.27319312]
[1769889406455,0.15705135,2394.5,2393.0,0.05987137]
[1769889406953,0.15705135,2394.5,2392.8,0.00407175]
[1769889406954,0.15705135,2394.5,2393.2,0.05987137]
[1769889407149,0.00294782,2394.8,2393.3,0.05987137]
[1769889407453,0.00294782,2394.8,2393.5,0.05987137]
[1769889407654,0.00294782,2394.8,2393.7,0.06483101]
[1769889408051,0.15999917,2394.8,2393.7,0.06483101]
[1769889408253,0.15999917,2394.8,2393.3,0.06483101]
[1769889408652,0.15999917,2394.8,2393.5,0.06483101]
[1769889409453,0.15999917,2394.8,2393.6,0.06483101]
[1769889409648,0.00294782,2394.8,2393.7,0.06540783]
[1769889409855,0.15705135,2395.3,2393.8,0.06540783]
[1769889410056,0.15705135,2395.3,2393.6,4.93114995]
[1769889410257,0.15705135,2395.3,2393.7,0.06540783]
[1769889410456,0.15705135,2395.3,2393.9,0.06540783]
[1769889410652,0.15705135,2395.7,2393.9,0.06540783]
[1769889410851,0.15705135,2395.7,2394.6,0.06540783]
[1769889410852,0.00395774,2395.7,2394.6,0.06540783]
[1769889411050,0.00395774,2395.7,2394.6,0.06836188]
[1769889411249,0.00395774,2395.7,2394.7,0.06540783]
[1769889411659,0.16100909,2395.7,2394.6,0.00295405]
[1769889411852,0.16100909,2395.7,2394.6,0.06921157]
[1769889412053,0.00395774,2395.7,2394.6,0.06921157]
[1769889412259,0.06070408,2396.3,2395.1,0.148193]
[1769889412457,0.06070408,2396.3,2395.2,0.148193]
[1769889412657,0.07264476,2397.4,2395.4,0.148193]
[1769889413153,0.07731178,2397.4,2395.4,0.148193]
[1769889413461,0.43151246,2397.4,2395.4,0.148193]
[1769889414257,0.15705135,2397.3,2395.4,0.148193]
[1769889415559,0.15705135,2397.3,2395.6,0.148193]
[1769889415958,0.15705135,2397.3,2395.6,5.07934295]
[1769889416154,0.15705135,2397.3,2395.6,0.148193]
[1769889416360,0.15705135,2397.3,2395.3,0.148193]
[1769889416961,0.15705135,2397.3,2395.1,5.794]
[1769889417156,0.15705135,2396.5,2394.7,4.93114995]
[1769889417357,0.15705135,2396.4,2394.6,0.00295405]
[1769889417657,0.15705135,2395.7,2394.3,4.93114995]
[1769889417860,0.15705135,2395.7,2394.0,10.75483107]
[1769889417861,0.15705135,2395.7,2394.0,3.343]
[1769889418056,0.15705135,2395.7,2393.8,4.93114995]
[1769889418261,0.15705135,2395.5,2393.4,4.93114995]
[1769889418461,0.15705135,2395.5,2393.5,0.148193]
[1769889418862,0.15705135,2395.5,2393.5,0.15275783]
[1769889418863,0.16241224,2395.5,2393.5,0.15275783]
[1769889420564,0.15705135,2395.2,2393.5,0.00456483]